{"text_format":"1","workbook":"xlsx","n_sheets":9,"sheets":["Main","Sheet1","Sheet2","Sheet4","Sheet3","Sheet5","Sheet6","Sheet7","Sheet8"],"not_rendered":{"charts":0,"images":1,"macros":1,"external_links":0,"defined_names":1,"comments":0,"pivot_tables":0},"unopened":[],"bounds":{"document_bytes":16777216,"sheet_cells":100000,"rows_first":2000,"rows_last":500,"rows_between":2000,"halvings":0,"cell_chars":16384,"cell_head_chars":4096},"cells_cut":0,"cells_raw":0,"read":"whole","date_system":"1900"}

{"sheet":"Main","index":0,"n_rows":196,"n_cols":10,"rows_kept":196,"cut":false,"hidden":false,"merged":[[3,1,3,2]]}
[]
[]
[]
[null,"Drop List"]
[]
[]
[]
[null,null,null,null,null,null,"Nono",456,null,{"$f":"IF(AND(G8=\"\",H8=\"\"),\"\",OFFSET(Main!$G$8,,,COUNTA(Main!$G:$G))&\" \"&OFFSET(Main!$H$8,,,COUNTA(Main!$H:$H)))","v":"Nono 456"}]
[null,null,null,null,null,null,"Momo",123,null,{"$f":"IF(AND(G9=\"\",H9=\"\"),\"\",OFFSET(Main!$G$8,,,COUNTA(Main!$G:$G))&\" \"&OFFSET(Main!$H$8,,,COUNTA(Main!$H:$H)))","v":"Momo 123"}]
[null,null,null,null,null,null,"OMAR","15HK",null,{"$f":"IF(AND(G10=\"\",H10=\"\"),\"\",OFFSET(Main!$G$8,,,COUNTA(Main!$G:$G))&\" \"&OFFSET(Main!$H$8,,,COUNTA(Main!$H:$H)))","v":"OMAR 15HK"}]
[null,null,null,null,null,null,"AHMED",52650,null,{"$f":"IF(AND(G11=\"\",H11=\"\"),\"\",OFFSET(Main!$G$8,,,COUNTA(Main!$G:$G))&\" \"&OFFSET(Main!$H$8,,,COUNTA(Main!$H:$H)))","v":"AHMED 52650"}]
[null,null,null,null,null,null,"Said","598lk1",null,{"$f":"IF(AND(G12=\"\",H12=\"\"),\"\",OFFSET(Main!$G$8,,,COUNTA(Main!$G:$G))&\" \"&OFFSET(Main!$H$8,,,COUNTA(Main!$H:$H)))","v":"Said 598lk1"}]
[null,null,null,null,null,null,"Murad",152630,null,{"$f":"IF(AND(G13=\"\",H13=\"\"),\"\",OFFSET(Main!$G$8,,,COUNTA(Main!$G:$G))&\" \"&OFFSET(Main!$H$8,,,COUNTA(Main!$H:$H)))","v":"Murad 152630"}]
[null,null,null,null,null,null,"Farouk",850,null,{"$f":"IF(AND(G14=\"\",H14=\"\"),\"\",OFFSET(Main!$G$8,,,COUNTA(Main!$G:$G))&\" \"&OFFSET(Main!$H$8,,,COUNTA(Main!$H:$H)))","v":"Farouk 850"}]
[null,null,null,null,null,null,"Mohamed Ali",52689,null,{"$f":"IF(AND(G15=\"\",H15=\"\"),\"\",OFFSET(Main!$G$8,,,COUNTA(Main!$G:$G))&\" \"&OFFSET(Main!$H$8,,,COUNTA(Main!$H:$H)))","v":"Mohamed Ali 52689"}]
[null,null,null,null,null,null,null,null,null,{"$f":"IF(AND(G16=\"\",H16=\"\"),\"\",OFFSET(Main!$G$8,,,COUNTA(Main!$G:$G))&\" \"&OFFSET(Main!$H$8,,,COUNTA(Main!$H:$H)))","v":""}]
[null,null,null,null,null,null,null,null,null,{"$f":"IF(AND(G17=\"\",H17=\"\"),\"\",OFFSET(Main!$G$8,,,COUNTA(Main!$G:$G))&\" \"&OFFSET(Main!$H$8,,,COUNTA(Main!$H:$H)))","v":""}]
[null,null,null,null,null,null,null,null,null,{"$f":"IF(AND(G18=\"\",H18=\"\"),\"\",OFFSET(Main!$G$8,,,COUNTA(Main!$G:$G))&\" \"&OFFSET(Main!$H$8,,,COUNTA(Main!$H:$H)))","v":""}]
[null,null,null,null,null,null,null,null,null,{"$f":"IF(AND(G19=\"\",H19=\"\"),\"\",OFFSET(Main!$G$8,,,COUNTA(Main!$G:$G))&\" \"&OFFSET(Main!$H$8,,,COUNTA(Main!$H:$H)))","v":""}]
[null,null,null,null,null,null,null,null,null,{"$f":"IF(AND(G20=\"\",H20=\"\"),\"\",OFFSET(Main!$G$8,,,COUNTA(Main!$G:$G))&\" \"&OFFSET(Main!$H$8,,,COUNTA(Main!$H:$H)))","v":""}]
[null,null,null,null,null,null,null,null,null,{"$f":"IF(AND(G21=\"\",H21=\"\"),\"\",OFFSET(Main!$G$8,,,COUNTA(Main!$G:$G))&\" \"&OFFSET(Main!$H$8,,,COUNTA(Main!$H:$H)))","v":""}]
[null,null,null,null,null,null,null,null,null,{"$f":"IF(AND(G22=\"\",H22=\"\"),\"\",OFFSET(Main!$G$8,,,COUNTA(Main!$G:$G))&\" \"&OFFSET(Main!$H$8,,,COUNTA(Main!$H:$H)))","v":""}]
[null,null,null,null,null,null,null,null,null,{"$f":"IF(AND(G23=\"\",H23=\"\"),\"\",OFFSET(Main!$G$8,,,COUNTA(Main!$G:$G))&\" \"&OFFSET(Main!$H$8,,,COUNTA(Main!$H:$H)))","v":""}]
[null,null,null,null,null,null,null,null,null,{"$f":"IF(AND(G24=\"\",H24=\"\"),\"\",OFFSET(Main!$G$8,,,COUNTA(Main!$G:$G))&\" \"&OFFSET(Main!$H$8,,,COUNTA(Main!$H:$H)))","v":""}]
[null,null,null,null,null,null,null,null,null,{"$f":"IF(AND(G25=\"\",H25=\"\"),\"\",OFFSET(Main!$G$8,,,COUNTA(Main!$G:$G))&\" \"&OFFSET(Main!$H$8,,,COUNTA(Main!$H:$H)))","v":""}]
[null,null,null,null,null,null,null,null,null,{"$f":"IF(AND(G26=\"\",H26=\"\"),\"\",OFFSET(Main!$G$8,,,COUNTA(Main!$G:$G))&\" \"&OFFSET(Main!$H$8,,,COUNTA(Main!$H:$H)))","v":""}]
[null,null,null,null,null,null,null,null,null,{"$f":"IF(AND(G27=\"\",H27=\"\"),\"\",OFFSET(Main!$G$8,,,COUNTA(Main!$G:$G))&\" \"&OFFSET(Main!$H$8,,,COUNTA(Main!$H:$H)))","v":""}]
[null,null,null,null,null,null,null,null,null,{"$f":"IF(AND(G28=\"\",H28=\"\"),\"\",OFFSET(Main!$G$8,,,COUNTA(Main!$G:$G))&\" \"&OFFSET(Main!$H$8,,,COUNTA(Main!$H:$H)))","v":""}]
[null,null,null,null,null,null,null,null,null,{"$f":"IF(AND(G29=\"\",H29=\"\"),\"\",OFFSET(Main!$G$8,,,COUNTA(Main!$G:$G))&\" \"&OFFSET(Main!$H$8,,,COUNTA(Main!$H:$H)))","v":""}]
[null,null,null,null,null,null,null,null,null,{"$f":"IF(AND(G30=\"\",H30=\"\"),\"\",OFFSET(Main!$G$8,,,COUNTA(Main!$G:$G))&\" \"&OFFSET(Main!$H$8,,,COUNTA(Main!$H:$H)))","v":""}]
[null,null,null,null,null,null,null,null,null,{"$f":"IF(AND(G31=\"\",H31=\"\"),\"\",OFFSET(Main!$G$8,,,COUNTA(Main!$G:$G))&\" \"&OFFSET(Main!$H$8,,,COUNTA(Main!$H:$H)))","v":""}]
[null,null,null,null,null,null,null,null,null,{"$f":"IF(AND(G32=\"\",H32=\"\"),\"\",OFFSET(Main!$G$8,,,COUNTA(Main!$G:$G))&\" \"&OFFSET(Main!$H$8,,,COUNTA(Main!$H:$H)))","v":""}]
[null,null,null,null,null,null,null,null,null,{"$f":"IF(AND(G33=\"\",H33=\"\"),\"\",OFFSET(Main!$G$8,,,COUNTA(Main!$G:$G))&\" \"&OFFSET(Main!$H$8,,,COUNTA(Main!$H:$H)))","v":""}]
[null,null,null,null,null,null,null,null,null,{"$f":"IF(AND(G34=\"\",H34=\"\"),\"\",OFFSET(Main!$G$8,,,COUNTA(Main!$G:$G))&\" \"&OFFSET(Main!$H$8,,,COUNTA(Main!$H:$H)))","v":""}]
[null,null,null,null,null,null,null,null,null,{"$f":"IF(AND(G35=\"\",H35=\"\"),\"\",OFFSET(Main!$G$8,,,COUNTA(Main!$G:$G))&\" \"&OFFSET(Main!$H$8,,,COUNTA(Main!$H:$H)))","v":""}]
[null,null,null,null,null,null,null,null,null,{"$f":"IF(AND(G36=\"\",H36=\"\"),\"\",OFFSET(Main!$G$8,,,COUNTA(Main!$G:$G))&\" \"&OFFSET(Main!$H$8,,,COUNTA(Main!$H:$H)))","v":""}]
[null,null,null,null,null,null,null,null,null,{"$f":"IF(AND(G37=\"\",H37=\"\"),\"\",OFFSET(Main!$G$8,,,COUNTA(Main!$G:$G))&\" \"&OFFSET(Main!$H$8,,,COUNTA(Main!$H:$H)))","v":""}]
[null,null,null,null,null,null,null,null,null,{"$f":"IF(AND(G38=\"\",H38=\"\"),\"\",OFFSET(Main!$G$8,,,COUNTA(Main!$G:$G))&\" \"&OFFSET(Main!$H$8,,,COUNTA(Main!$H:$H)))","v":""}]
[null,null,null,null,null,null,null,null,null,{"$f":"IF(AND(G39=\"\",H39=\"\"),\"\",OFFSET(Main!$G$8,,,COUNTA(Main!$G:$G))&\" \"&OFFSET(Main!$H$8,,,COUNTA(Main!$H:$H)))","v":""}]
[null,null,null,null,null,null,null,null,null,{"$f":"IF(AND(G40=\"\",H40=\"\"),\"\",OFFSET(Main!$G$8,,,COUNTA(Main!$G:$G))&\" \"&OFFSET(Main!$H$8,,,COUNTA(Main!$H:$H)))","v":""}]
[null,null,null,null,null,null,null,null,null,{"$f":"IF(AND(G41=\"\",H41=\"\"),\"\",OFFSET(Main!$G$8,,,COUNTA(Main!$G:$G))&\" \"&OFFSET(Main!$H$8,,,COUNTA(Main!$H:$H)))","v":""}]
[null,null,null,null,null,null,null,null,null,{"$f":"IF(AND(G42=\"\",H42=\"\"),\"\",OFFSET(Main!$G$8,,,COUNTA(Main!$G:$G))&\" \"&OFFSET(Main!$H$8,,,COUNTA(Main!$H:$H)))","v":""}]
[null,null,null,null,null,null,null,null,null,{"$f":"IF(AND(G43=\"\",H43=\"\"),\"\",OFFSET(Main!$G$8,,,COUNTA(Main!$G:$G))&\" \"&OFFSET(Main!$H$8,,,COUNTA(Main!$H:$H)))","v":""}]
[null,null,null,null,null,null,null,null,null,{"$f":"IF(AND(G44=\"\",H44=\"\"),\"\",OFFSET(Main!$G$8,,,COUNTA(Main!$G:$G))&\" \"&OFFSET(Main!$H$8,,,COUNTA(Main!$H:$H)))","v":""}]
[null,null,null,null,null,null,null,null,null,{"$f":"IF(AND(G45=\"\",H45=\"\"),\"\",OFFSET(Main!$G$8,,,COUNTA(Main!$G:$G))&\" \"&OFFSET(Main!$H$8,,,COUNTA(Main!$H:$H)))","v":""}]
[null,null,null,null,null,null,null,null,null,{"$f":"IF(AND(G46=\"\",H46=\"\"),\"\",OFFSET(Main!$G$8,,,COUNTA(Main!$G:$G))&\" \"&OFFSET(Main!$H$8,,,COUNTA(Main!$H:$H)))","v":""}]
[null,null,null,null,null,null,null,null,null,{"$f":"IF(AND(G47=\"\",H47=\"\"),\"\",OFFSET(Main!$G$8,,,COUNTA(Main!$G:$G))&\" \"&OFFSET(Main!$H$8,,,COUNTA(Main!$H:$H)))","v":""}]
[null,null,null,null,null,null,null,null,null,{"$f":"IF(AND(G48=\"\",H48=\"\"),\"\",OFFSET(Main!$G$8,,,COUNTA(Main!$G:$G))&\" \"&OFFSET(Main!$H$8,,,COUNTA(Main!$H:$H)))","v":""}]
[null,null,null,null,null,null,null,null,null,{"$f":"IF(AND(G49=\"\",H49=\"\"),\"\",OFFSET(Main!$G$8,,,COUNTA(Main!$G:$G))&\" \"&OFFSET(Main!$H$8,,,COUNTA(Main!$H:$H)))","v":""}]
[null,null,null,null,null,null,null,null,null,{"$f":"IF(AND(G50=\"\",H50=\"\"),\"\",OFFSET(Main!$G$8,,,COUNTA(Main!$G:$G))&\" \"&OFFSET(Main!$H$8,,,COUNTA(Main!$H:$H)))","v":""}]
[null,null,null,null,null,null,null,null,null,{"$f":"IF(AND(G51=\"\",H51=\"\"),\"\",OFFSET(Main!$G$8,,,COUNTA(Main!$G:$G))&\" \"&OFFSET(Main!$H$8,,,COUNTA(Main!$H:$H)))","v":""}]
[null,null,null,null,null,null,null,null,null,{"$f":"IF(AND(G52=\"\",H52=\"\"),\"\",OFFSET(Main!$G$8,,,COUNTA(Main!$G:$G))&\" \"&OFFSET(Main!$H$8,,,COUNTA(Main!$H:$H)))","v":""}]
[null,null,null,null,null,null,null,null,null,{"$f":"IF(AND(G53=\"\",H53=\"\"),\"\",OFFSET(Main!$G$8,,,COUNTA(Main!$G:$G))&\" \"&OFFSET(Main!$H$8,,,COUNTA(Main!$H:$H)))","v":""}]
[null,null,null,null,null,null,null,null,null,{"$f":"IF(AND(G54=\"\",H54=\"\"),\"\",OFFSET(Main!$G$8,,,COUNTA(Main!$G:$G))&\" \"&OFFSET(Main!$H$8,,,COUNTA(Main!$H:$H)))","v":""}]
[null,null,null,null,null,null,null,null,null,{"$f":"IF(AND(G55=\"\",H55=\"\"),\"\",OFFSET(Main!$G$8,,,COUNTA(Main!$G:$G))&\" \"&OFFSET(Main!$H$8,,,COUNTA(Main!$H:$H)))","v":""}]
[null,null,null,null,null,null,null,null,null,{"$f":"IF(AND(G56=\"\",H56=\"\"),\"\",OFFSET(Main!$G$8,,,COUNTA(Main!$G:$G))&\" \"&OFFSET(Main!$H$8,,,COUNTA(Main!$H:$H)))","v":""}]
[null,null,null,null,null,null,null,null,null,{"$f":"IF(AND(G57=\"\",H57=\"\"),\"\",OFFSET(Main!$G$8,,,COUNTA(Main!$G:$G))&\" \"&OFFSET(Main!$H$8,,,COUNTA(Main!$H:$H)))","v":""}]
[null,null,null,null,null,null,null,null,null,{"$f":"IF(AND(G58=\"\",H58=\"\"),\"\",OFFSET(Main!$G$8,,,COUNTA(Main!$G:$G))&\" \"&OFFSET(Main!$H$8,,,COUNTA(Main!$H:$H)))","v":""}]
[null,null,null,null,null,null,null,null,null,{"$f":"IF(AND(G59=\"\",H59=\"\"),\"\",OFFSET(Main!$G$8,,,COUNTA(Main!$G:$G))&\" \"&OFFSET(Main!$H$8,,,COUNTA(Main!$H:$H)))","v":""}]
[null,null,null,null,null,null,null,null,null,{"$f":"IF(AND(G60=\"\",H60=\"\"),\"\",OFFSET(Main!$G$8,,,COUNTA(Main!$G:$G))&\" \"&OFFSET(Main!$H$8,,,COUNTA(Main!$H:$H)))","v":""}]
[null,null,null,null,null,null,null,null,null,{"$f":"IF(AND(G61=\"\",H61=\"\"),\"\",OFFSET(Main!$G$8,,,COUNTA(Main!$G:$G))&\" \"&OFFSET(Main!$H$8,,,COUNTA(Main!$H:$H)))","v":""}]
[null,null,null,null,null,null,null,null,null,{"$f":"IF(AND(G62=\"\",H62=\"\"),\"\",OFFSET(Main!$G$8,,,COUNTA(Main!$G:$G))&\" \"&OFFSET(Main!$H$8,,,COUNTA(Main!$H:$H)))","v":""}]
[null,null,null,null,null,null,null,null,null,{"$f":"IF(AND(G63=\"\",H63=\"\"),\"\",OFFSET(Main!$G$8,,,COUNTA(Main!$G:$G))&\" \"&OFFSET(Main!$H$8,,,COUNTA(Main!$H:$H)))","v":""}]
[null,null,null,null,null,null,null,null,null,{"$f":"IF(AND(G64=\"\",H64=\"\"),\"\",OFFSET(Main!$G$8,,,COUNTA(Main!$G:$G))&\" \"&OFFSET(Main!$H$8,,,COUNTA(Main!$H:$H)))","v":""}]
[null,null,null,null,null,null,null,null,null,{"$f":"IF(AND(G65=\"\",H65=\"\"),\"\",OFFSET(Main!$G$8,,,COUNTA(Main!$G:$G))&\" \"&OFFSET(Main!$H$8,,,COUNTA(Main!$H:$H)))","v":""}]
[null,null,null,null,null,null,null,null,null,{"$f":"IF(AND(G66=\"\",H66=\"\"),\"\",OFFSET(Main!$G$8,,,COUNTA(Main!$G:$G))&\" \"&OFFSET(Main!$H$8,,,COUNTA(Main!$H:$H)))","v":""}]
[null,null,null,null,null,null,null,null,null,{"$f":"IF(AND(G67=\"\",H67=\"\"),\"\",OFFSET(Main!$G$8,,,COUNTA(Main!$G:$G))&\" \"&OFFSET(Main!$H$8,,,COUNTA(Main!$H:$H)))","v":""}]
[null,null,null,null,null,null,null,null,null,{"$f":"IF(AND(G68=\"\",H68=\"\"),\"\",OFFSET(Main!$G$8,,,COUNTA(Main!$G:$G))&\" \"&OFFSET(Main!$H$8,,,COUNTA(Main!$H:$H)))","v":""}]
[null,null,null,null,null,null,null,null,null,{"$f":"IF(AND(G69=\"\",H69=\"\"),\"\",OFFSET(Main!$G$8,,,COUNTA(Main!$G:$G))&\" \"&OFFSET(Main!$H$8,,,COUNTA(Main!$H:$H)))","v":""}]
[null,null,null,null,null,null,null,null,null,{"$f":"IF(AND(G70=\"\",H70=\"\"),\"\",OFFSET(Main!$G$8,,,COUNTA(Main!$G:$G))&\" \"&OFFSET(Main!$H$8,,,COUNTA(Main!$H:$H)))","v":""}]
[null,null,null,null,null,null,null,null,null,{"$f":"IF(AND(G71=\"\",H71=\"\"),\"\",OFFSET(Main!$G$8,,,COUNTA(Main!$G:$G))&\" \"&OFFSET(Main!$H$8,,,COUNTA(Main!$H:$H)))","v":""}]
[null,null,null,null,null,null,null,null,null,{"$f":"IF(AND(G72=\"\",H72=\"\"),\"\",OFFSET(Main!$G$8,,,COUNTA(Main!$G:$G))&\" \"&OFFSET(Main!$H$8,,,COUNTA(Main!$H:$H)))","v":""}]
[null,null,null,null,null,null,null,null,null,{"$f":"IF(AND(G73=\"\",H73=\"\"),\"\",OFFSET(Main!$G$8,,,COUNTA(Main!$G:$G))&\" \"&OFFSET(Main!$H$8,,,COUNTA(Main!$H:$H)))","v":""}]
[null,null,null,null,null,null,null,null,null,{"$f":"IF(AND(G74=\"\",H74=\"\"),\"\",OFFSET(Main!$G$8,,,COUNTA(Main!$G:$G))&\" \"&OFFSET(Main!$H$8,,,COUNTA(Main!$H:$H)))","v":""}]
[null,null,null,null,null,null,null,null,null,{"$f":"IF(AND(G75=\"\",H75=\"\"),\"\",OFFSET(Main!$G$8,,,COUNTA(Main!$G:$G))&\" \"&OFFSET(Main!$H$8,,,COUNTA(Main!$H:$H)))","v":""}]
[null,null,null,null,null,null,null,null,null,{"$f":"IF(AND(G76=\"\",H76=\"\"),\"\",OFFSET(Main!$G$8,,,COUNTA(Main!$G:$G))&\" \"&OFFSET(Main!$H$8,,,COUNTA(Main!$H:$H)))","v":""}]
[null,null,null,null,null,null,null,null,null,{"$f":"IF(AND(G77=\"\",H77=\"\"),\"\",OFFSET(Main!$G$8,,,COUNTA(Main!$G:$G))&\" \"&OFFSET(Main!$H$8,,,COUNTA(Main!$H:$H)))","v":""}]
[null,null,null,null,null,null,null,null,null,{"$f":"IF(AND(G78=\"\",H78=\"\"),\"\",OFFSET(Main!$G$8,,,COUNTA(Main!$G:$G))&\" \"&OFFSET(Main!$H$8,,,COUNTA(Main!$H:$H)))","v":""}]
[null,null,null,null,null,null,null,null,null,{"$f":"IF(AND(G79=\"\",H79=\"\"),\"\",OFFSET(Main!$G$8,,,COUNTA(Main!$G:$G))&\" \"&OFFSET(Main!$H$8,,,COUNTA(Main!$H:$H)))","v":""}]
[null,null,null,null,null,null,null,null,null,{"$f":"IF(AND(G80=\"\",H80=\"\"),\"\",OFFSET(Main!$G$8,,,COUNTA(Main!$G:$G))&\" \"&OFFSET(Main!$H$8,,,COUNTA(Main!$H:$H)))","v":""}]
[null,null,null,null,null,null,null,null,null,{"$f":"IF(AND(G81=\"\",H81=\"\"),\"\",OFFSET(Main!$G$8,,,COUNTA(Main!$G:$G))&\" \"&OFFSET(Main!$H$8,,,COUNTA(Main!$H:$H)))","v":""}]
[null,null,null,null,null,null,null,null,null,{"$f":"IF(AND(G82=\"\",H82=\"\"),\"\",OFFSET(Main!$G$8,,,COUNTA(Main!$G:$G))&\" \"&OFFSET(Main!$H$8,,,COUNTA(Main!$H:$H)))","v":""}]
[null,null,null,null,null,null,null,null,null,{"$f":"IF(AND(G83=\"\",H83=\"\"),\"\",OFFSET(Main!$G$8,,,COUNTA(Main!$G:$G))&\" \"&OFFSET(Main!$H$8,,,COUNTA(Main!$H:$H)))","v":""}]
[null,null,null,null,null,null,null,null,null,{"$f":"IF(AND(G84=\"\",H84=\"\"),\"\",OFFSET(Main!$G$8,,,COUNTA(Main!$G:$G))&\" \"&OFFSET(Main!$H$8,,,COUNTA(Main!$H:$H)))","v":""}]
[null,null,null,null,null,null,null,null,null,{"$f":"IF(AND(G85=\"\",H85=\"\"),\"\",OFFSET(Main!$G$8,,,COUNTA(Main!$G:$G))&\" \"&OFFSET(Main!$H$8,,,COUNTA(Main!$H:$H)))","v":""}]
[null,null,null,null,null,null,null,null,null,{"$f":"IF(AND(G86=\"\",H86=\"\"),\"\",OFFSET(Main!$G$8,,,COUNTA(Main!$G:$G))&\" \"&OFFSET(Main!$H$8,,,COUNTA(Main!$H:$H)))","v":""}]
[null,null,null,null,null,null,null,null,null,{"$f":"IF(AND(G87=\"\",H87=\"\"),\"\",OFFSET(Main!$G$8,,,COUNTA(Main!$G:$G))&\" \"&OFFSET(Main!$H$8,,,COUNTA(Main!$H:$H)))","v":""}]
[null,null,null,null,null,null,null,null,null,{"$f":"IF(AND(G88=\"\",H88=\"\"),\"\",OFFSET(Main!$G$8,,,COUNTA(Main!$G:$G))&\" \"&OFFSET(Main!$H$8,,,COUNTA(Main!$H:$H)))","v":""}]
[null,null,null,null,null,null,null,null,null,{"$f":"IF(AND(G89=\"\",H89=\"\"),\"\",OFFSET(Main!$G$8,,,COUNTA(Main!$G:$G))&\" \"&OFFSET(Main!$H$8,,,COUNTA(Main!$H:$H)))","v":""}]
[null,null,null,null,null,null,null,null,null,{"$f":"IF(AND(G90=\"\",H90=\"\"),\"\",OFFSET(Main!$G$8,,,COUNTA(Main!$G:$G))&\" \"&OFFSET(Main!$H$8,,,COUNTA(Main!$H:$H)))","v":""}]
[null,null,null,null,null,null,null,null,null,{"$f":"IF(AND(G91=\"\",H91=\"\"),\"\",OFFSET(Main!$G$8,,,COUNTA(Main!$G:$G))&\" \"&OFFSET(Main!$H$8,,,COUNTA(Main!$H:$H)))","v":""}]
[null,null,null,null,null,null,null,null,null,{"$f":"IF(AND(G92=\"\",H92=\"\"),\"\",OFFSET(Main!$G$8,,,COUNTA(Main!$G:$G))&\" \"&OFFSET(Main!$H$8,,,COUNTA(Main!$H:$H)))","v":""}]
[null,null,null,null,null,null,null,null,null,{"$f":"IF(AND(G93=\"\",H93=\"\"),\"\",OFFSET(Main!$G$8,,,COUNTA(Main!$G:$G))&\" \"&OFFSET(Main!$H$8,,,COUNTA(Main!$H:$H)))","v":""}]
[null,null,null,null,null,null,null,null,null,{"$f":"IF(AND(G94=\"\",H94=\"\"),\"\",OFFSET(Main!$G$8,,,COUNTA(Main!$G:$G))&\" \"&OFFSET(Main!$H$8,,,COUNTA(Main!$H:$H)))","v":""}]
[null,null,null,null,null,null,null,null,null,{"$f":"IF(AND(G95=\"\",H95=\"\"),\"\",OFFSET(Main!$G$8,,,COUNTA(Main!$G:$G))&\" \"&OFFSET(Main!$H$8,,,COUNTA(Main!$H:$H)))","v":""}]
[null,null,null,null,null,null,null,null,null,{"$f":"IF(AND(G96=\"\",H96=\"\"),\"\",OFFSET(Main!$G$8,,,COUNTA(Main!$G:$G))&\" \"&OFFSET(Main!$H$8,,,COUNTA(Main!$H:$H)))","v":""}]
[null,null,null,null,null,null,null,null,null,{"$f":"IF(AND(G97=\"\",H97=\"\"),\"\",OFFSET(Main!$G$8,,,COUNTA(Main!$G:$G))&\" \"&OFFSET(Main!$H$8,,,COUNTA(Main!$H:$H)))","v":""}]
[null,null,null,null,null,null,null,null,null,{"$f":"IF(AND(G98=\"\",H98=\"\"),\"\",OFFSET(Main!$G$8,,,COUNTA(Main!$G:$G))&\" \"&OFFSET(Main!$H$8,,,COUNTA(Main!$H:$H)))","v":""}]
[null,null,null,null,null,null,null,null,null,{"$f":"IF(AND(G99=\"\",H99=\"\"),\"\",OFFSET(Main!$G$8,,,COUNTA(Main!$G:$G))&\" \"&OFFSET(Main!$H$8,,,COUNTA(Main!$H:$H)))","v":""}]
[null,null,null,null,null,null,null,null,null,{"$f":"IF(AND(G100=\"\",H100=\"\"),\"\",OFFSET(Main!$G$8,,,COUNTA(Main!$G:$G))&\" \"&OFFSET(Main!$H$8,,,COUNTA(Main!$H:$H)))","v":""}]
[null,null,null,null,null,null,null,null,null,{"$f":"IF(AND(G101=\"\",H101=\"\"),\"\",OFFSET(Main!$G$8,,,COUNTA(Main!$G:$G))&\" \"&OFFSET(Main!$H$8,,,COUNTA(Main!$H:$H)))","v":""}]
[null,null,null,null,null,null,null,null,null,{"$f":"IF(AND(G102=\"\",H102=\"\"),\"\",OFFSET(Main!$G$8,,,COUNTA(Main!$G:$G))&\" \"&OFFSET(Main!$H$8,,,COUNTA(Main!$H:$H)))","v":""}]
[null,null,null,null,null,null,null,null,null,{"$f":"IF(AND(G103=\"\",H103=\"\"),\"\",OFFSET(Main!$G$8,,,COUNTA(Main!$G:$G))&\" \"&OFFSET(Main!$H$8,,,COUNTA(Main!$H:$H)))","v":""}]
[null,null,null,null,null,null,null,null,null,{"$f":"IF(AND(G104=\"\",H104=\"\"),\"\",OFFSET(Main!$G$8,,,COUNTA(Main!$G:$G))&\" \"&OFFSET(Main!$H$8,,,COUNTA(Main!$H:$H)))","v":""}]
[null,null,null,null,null,null,null,null,null,{"$f":"IF(AND(G105=\"\",H105=\"\"),\"\",OFFSET(Main!$G$8,,,COUNTA(Main!$G:$G))&\" \"&OFFSET(Main!$H$8,,,COUNTA(Main!$H:$H)))","v":""}]
[null,null,null,null,null,null,null,null,null,{"$f":"IF(AND(G106=\"\",H106=\"\"),\"\",OFFSET(Main!$G$8,,,COUNTA(Main!$G:$G))&\" \"&OFFSET(Main!$H$8,,,COUNTA(Main!$H:$H)))","v":""}]
[null,null,null,null,null,null,null,null,null,{"$f":"IF(AND(G107=\"\",H107=\"\"),\"\",OFFSET(Main!$G$8,,,COUNTA(Main!$G:$G))&\" \"&OFFSET(Main!$H$8,,,COUNTA(Main!$H:$H)))","v":""}]
[null,null,null,null,null,null,null,null,null,{"$f":"IF(AND(G108=\"\",H108=\"\"),\"\",OFFSET(Main!$G$8,,,COUNTA(Main!$G:$G))&\" \"&OFFSET(Main!$H$8,,,COUNTA(Main!$H:$H)))","v":""}]
[null,null,null,null,null,null,null,null,null,{"$f":"IF(AND(G109=\"\",H109=\"\"),\"\",OFFSET(Main!$G$8,,,COUNTA(Main!$G:$G))&\" \"&OFFSET(Main!$H$8,,,COUNTA(Main!$H:$H)))","v":""}]
[null,null,null,null,null,null,null,null,null,{"$f":"IF(AND(G110=\"\",H110=\"\"),\"\",OFFSET(Main!$G$8,,,COUNTA(Main!$G:$G))&\" \"&OFFSET(Main!$H$8,,,COUNTA(Main!$H:$H)))","v":""}]
[null,null,null,null,null,null,null,null,null,{"$f":"IF(AND(G111=\"\",H111=\"\"),\"\",OFFSET(Main!$G$8,,,COUNTA(Main!$G:$G))&\" \"&OFFSET(Main!$H$8,,,COUNTA(Main!$H:$H)))","v":""}]
[null,null,null,null,null,null,null,null,null,{"$f":"IF(AND(G112=\"\",H112=\"\"),\"\",OFFSET(Main!$G$8,,,COUNTA(Main!$G:$G))&\" \"&OFFSET(Main!$H$8,,,COUNTA(Main!$H:$H)))","v":""}]
[null,null,null,null,null,null,null,null,null,{"$f":"IF(AND(G113=\"\",H113=\"\"),\"\",OFFSET(Main!$G$8,,,COUNTA(Main!$G:$G))&\" \"&OFFSET(Main!$H$8,,,COUNTA(Main!$H:$H)))","v":""}]
[null,null,null,null,null,null,null,null,null,{"$f":"IF(AND(G114=\"\",H114=\"\"),\"\",OFFSET(Main!$G$8,,,COUNTA(Main!$G:$G))&\" \"&OFFSET(Main!$H$8,,,COUNTA(Main!$H:$H)))","v":""}]
[null,null,null,null,null,null,null,null,null,{"$f":"IF(AND(G115=\"\",H115=\"\"),\"\",OFFSET(Main!$G$8,,,COUNTA(Main!$G:$G))&\" \"&OFFSET(Main!$H$8,,,COUNTA(Main!$H:$H)))","v":""}]
[null,null,null,null,null,null,null,null,null,{"$f":"IF(AND(G116=\"\",H116=\"\"),\"\",OFFSET(Main!$G$8,,,COUNTA(Main!$G:$G))&\" \"&OFFSET(Main!$H$8,,,COUNTA(Main!$H:$H)))","v":""}]
[null,null,null,null,null,null,null,null,null,{"$f":"IF(AND(G117=\"\",H117=\"\"),\"\",OFFSET(Main!$G$8,,,COUNTA(Main!$G:$G))&\" \"&OFFSET(Main!$H$8,,,COUNTA(Main!$H:$H)))","v":""}]
[null,null,null,null,null,null,null,null,null,{"$f":"IF(AND(G118=\"\",H118=\"\"),\"\",OFFSET(Main!$G$8,,,COUNTA(Main!$G:$G))&\" \"&OFFSET(Main!$H$8,,,COUNTA(Main!$H:$H)))","v":""}]
[null,null,null,null,null,null,null,null,null,{"$f":"IF(AND(G119=\"\",H119=\"\"),\"\",OFFSET(Main!$G$8,,,COUNTA(Main!$G:$G))&\" \"&OFFSET(Main!$H$8,,,COUNTA(Main!$H:$H)))","v":""}]
[null,null,null,null,null,null,null,null,null,{"$f":"IF(AND(G120=\"\",H120=\"\"),\"\",OFFSET(Main!$G$8,,,COUNTA(Main!$G:$G))&\" \"&OFFSET(Main!$H$8,,,COUNTA(Main!$H:$H)))","v":""}]
[null,null,null,null,null,null,null,null,null,{"$f":"IF(AND(G121=\"\",H121=\"\"),\"\",OFFSET(Main!$G$8,,,COUNTA(Main!$G:$G))&\" \"&OFFSET(Main!$H$8,,,COUNTA(Main!$H:$H)))","v":""}]
[null,null,null,null,null,null,null,null,null,{"$f":"IF(AND(G122=\"\",H122=\"\"),\"\",OFFSET(Main!$G$8,,,COUNTA(Main!$G:$G))&\" \"&OFFSET(Main!$H$8,,,COUNTA(Main!$H:$H)))","v":""}]
[null,null,null,null,null,null,null,null,null,{"$f":"IF(AND(G123=\"\",H123=\"\"),\"\",OFFSET(Main!$G$8,,,COUNTA(Main!$G:$G))&\" \"&OFFSET(Main!$H$8,,,COUNTA(Main!$H:$H)))","v":""}]
[null,null,null,null,null,null,null,null,null,{"$f":"IF(AND(G124=\"\",H124=\"\"),\"\",OFFSET(Main!$G$8,,,COUNTA(Main!$G:$G))&\" \"&OFFSET(Main!$H$8,,,COUNTA(Main!$H:$H)))","v":""}]
[null,null,null,null,null,null,null,null,null,{"$f":"IF(AND(G125=\"\",H125=\"\"),\"\",OFFSET(Main!$G$8,,,COUNTA(Main!$G:$G))&\" \"&OFFSET(Main!$H$8,,,COUNTA(Main!$H:$H)))","v":""}]
[null,null,null,null,null,null,null,null,null,{"$f":"IF(AND(G126=\"\",H126=\"\"),\"\",OFFSET(Main!$G$8,,,COUNTA(Main!$G:$G))&\" \"&OFFSET(Main!$H$8,,,COUNTA(Main!$H:$H)))","v":""}]
[null,null,null,null,null,null,null,null,null,{"$f":"IF(AND(G127=\"\",H127=\"\"),\"\",OFFSET(Main!$G$8,,,COUNTA(Main!$G:$G))&\" \"&OFFSET(Main!$H$8,,,COUNTA(Main!$H:$H)))","v":""}]
[null,null,null,null,null,null,null,null,null,{"$f":"IF(AND(G128=\"\",H128=\"\"),\"\",OFFSET(Main!$G$8,,,COUNTA(Main!$G:$G))&\" \"&OFFSET(Main!$H$8,,,COUNTA(Main!$H:$H)))","v":""}]
[null,null,null,null,null,null,null,null,null,{"$f":"IF(AND(G129=\"\",H129=\"\"),\"\",OFFSET(Main!$G$8,,,COUNTA(Main!$G:$G))&\" \"&OFFSET(Main!$H$8,,,COUNTA(Main!$H:$H)))","v":""}]
[null,null,null,null,null,null,null,null,null,{"$f":"IF(AND(G130=\"\",H130=\"\"),\"\",OFFSET(Main!$G$8,,,COUNTA(Main!$G:$G))&\" \"&OFFSET(Main!$H$8,,,COUNTA(Main!$H:$H)))","v":""}]
[null,null,null,null,null,null,null,null,null,{"$f":"IF(AND(G131=\"\",H131=\"\"),\"\",OFFSET(Main!$G$8,,,COUNTA(Main!$G:$G))&\" \"&OFFSET(Main!$H$8,,,COUNTA(Main!$H:$H)))","v":""}]
[null,null,null,null,null,null,null,null,null,{"$f":"IF(AND(G132=\"\",H132=\"\"),\"\",OFFSET(Main!$G$8,,,COUNTA(Main!$G:$G))&\" \"&OFFSET(Main!$H$8,,,COUNTA(Main!$H:$H)))","v":""}]
[null,null,null,null,null,null,null,null,null,{"$f":"IF(AND(G133=\"\",H133=\"\"),\"\",OFFSET(Main!$G$8,,,COUNTA(Main!$G:$G))&\" \"&OFFSET(Main!$H$8,,,COUNTA(Main!$H:$H)))","v":""}]
[null,null,null,null,null,null,null,null,null,{"$f":"IF(AND(G134=\"\",H134=\"\"),\"\",OFFSET(Main!$G$8,,,COUNTA(Main!$G:$G))&\" \"&OFFSET(Main!$H$8,,,COUNTA(Main!$H:$H)))","v":""}]
[null,null,null,null,null,null,null,null,null,{"$f":"IF(AND(G135=\"\",H135=\"\"),\"\",OFFSET(Main!$G$8,,,COUNTA(Main!$G:$G))&\" \"&OFFSET(Main!$H$8,,,COUNTA(Main!$H:$H)))","v":""}]
[null,null,null,null,null,null,null,null,null,{"$f":"IF(AND(G136=\"\",H136=\"\"),\"\",OFFSET(Main!$G$8,,,COUNTA(Main!$G:$G))&\" \"&OFFSET(Main!$H$8,,,COUNTA(Main!$H:$H)))","v":""}]
[null,null,null,null,null,null,null,null,null,{"$f":"IF(AND(G137=\"\",H137=\"\"),\"\",OFFSET(Main!$G$8,,,COUNTA(Main!$G:$G))&\" \"&OFFSET(Main!$H$8,,,COUNTA(Main!$H:$H)))","v":""}]
[null,null,null,null,null,null,null,null,null,{"$f":"IF(AND(G138=\"\",H138=\"\"),\"\",OFFSET(Main!$G$8,,,COUNTA(Main!$G:$G))&\" \"&OFFSET(Main!$H$8,,,COUNTA(Main!$H:$H)))","v":""}]
[null,null,null,null,null,null,null,null,null,{"$f":"IF(AND(G139=\"\",H139=\"\"),\"\",OFFSET(Main!$G$8,,,COUNTA(Main!$G:$G))&\" \"&OFFSET(Main!$H$8,,,COUNTA(Main!$H:$H)))","v":""}]
[null,null,null,null,null,null,null,null,null,{"$f":"IF(AND(G140=\"\",H140=\"\"),\"\",OFFSET(Main!$G$8,,,COUNTA(Main!$G:$G))&\" \"&OFFSET(Main!$H$8,,,COUNTA(Main!$H:$H)))","v":""}]
[null,null,null,null,null,null,null,null,null,{"$f":"IF(AND(G141=\"\",H141=\"\"),\"\",OFFSET(Main!$G$8,,,COUNTA(Main!$G:$G))&\" \"&OFFSET(Main!$H$8,,,COUNTA(Main!$H:$H)))","v":""}]
[null,null,null,null,null,null,null,null,null,{"$f":"IF(AND(G142=\"\",H142=\"\"),\"\",OFFSET(Main!$G$8,,,COUNTA(Main!$G:$G))&\" \"&OFFSET(Main!$H$8,,,COUNTA(Main!$H:$H)))","v":""}]
[null,null,null,null,null,null,null,null,null,{"$f":"IF(AND(G143=\"\",H143=\"\"),\"\",OFFSET(Main!$G$8,,,COUNTA(Main!$G:$G))&\" \"&OFFSET(Main!$H$8,,,COUNTA(Main!$H:$H)))","v":""}]
[null,null,null,null,null,null,null,null,null,{"$f":"IF(AND(G144=\"\",H144=\"\"),\"\",OFFSET(Main!$G$8,,,COUNTA(Main!$G:$G))&\" \"&OFFSET(Main!$H$8,,,COUNTA(Main!$H:$H)))","v":""}]
[null,null,null,null,null,null,null,null,null,{"$f":"IF(AND(G145=\"\",H145=\"\"),\"\",OFFSET(Main!$G$8,,,COUNTA(Main!$G:$G))&\" \"&OFFSET(Main!$H$8,,,COUNTA(Main!$H:$H)))","v":""}]
[null,null,null,null,null,null,null,null,null,{"$f":"IF(AND(G146=\"\",H146=\"\"),\"\",OFFSET(Main!$G$8,,,COUNTA(Main!$G:$G))&\" \"&OFFSET(Main!$H$8,,,COUNTA(Main!$H:$H)))","v":""}]
[null,null,null,null,null,null,null,null,null,{"$f":"IF(AND(G147=\"\",H147=\"\"),\"\",OFFSET(Main!$G$8,,,COUNTA(Main!$G:$G))&\" \"&OFFSET(Main!$H$8,,,COUNTA(Main!$H:$H)))","v":""}]
[null,null,null,null,null,null,null,null,null,{"$f":"IF(AND(G148=\"\",H148=\"\"),\"\",OFFSET(Main!$G$8,,,COUNTA(Main!$G:$G))&\" \"&OFFSET(Main!$H$8,,,COUNTA(Main!$H:$H)))","v":""}]
[null,null,null,null,null,null,null,null,null,{"$f":"IF(AND(G149=\"\",H149=\"\"),\"\",OFFSET(Main!$G$8,,,COUNTA(Main!$G:$G))&\" \"&OFFSET(Main!$H$8,,,COUNTA(Main!$H:$H)))","v":""}]
[null,null,null,null,null,null,null,null,null,{"$f":"IF(AND(G150=\"\",H150=\"\"),\"\",OFFSET(Main!$G$8,,,COUNTA(Main!$G:$G))&\" \"&OFFSET(Main!$H$8,,,COUNTA(Main!$H:$H)))","v":""}]
[null,null,null,null,null,null,null,null,null,{"$f":"IF(AND(G151=\"\",H151=\"\"),\"\",OFFSET(Main!$G$8,,,COUNTA(Main!$G:$G))&\" \"&OFFSET(Main!$H$8,,,COUNTA(Main!$H:$H)))","v":""}]
[null,null,null,null,null,null,null,null,null,{"$f":"IF(AND(G152=\"\",H152=\"\"),\"\",OFFSET(Main!$G$8,,,COUNTA(Main!$G:$G))&\" \"&OFFSET(Main!$H$8,,,COUNTA(Main!$H:$H)))","v":""}]
[null,null,null,null,null,null,null,null,null,{"$f":"IF(AND(G153=\"\",H153=\"\"),\"\",OFFSET(Main!$G$8,,,COUNTA(Main!$G:$G))&\" \"&OFFSET(Main!$H$8,,,COUNTA(Main!$H:$H)))","v":""}]
[null,null,null,null,null,null,null,null,null,{"$f":"IF(AND(G154=\"\",H154=\"\"),\"\",OFFSET(Main!$G$8,,,COUNTA(Main!$G:$G))&\" \"&OFFSET(Main!$H$8,,,COUNTA(Main!$H:$H)))","v":""}]
[null,null,null,null,null,null,null,null,null,{"$f":"IF(AND(G155=\"\",H155=\"\"),\"\",OFFSET(Main!$G$8,,,COUNTA(Main!$G:$G))&\" \"&OFFSET(Main!$H$8,,,COUNTA(Main!$H:$H)))","v":""}]
[null,null,null,null,null,null,null,null,null,{"$f":"IF(AND(G156=\"\",H156=\"\"),\"\",OFFSET(Main!$G$8,,,COUNTA(Main!$G:$G))&\" \"&OFFSET(Main!$H$8,,,COUNTA(Main!$H:$H)))","v":""}]
[null,null,null,null,null,null,null,null,null,{"$f":"IF(AND(G157=\"\",H157=\"\"),\"\",OFFSET(Main!$G$8,,,COUNTA(Main!$G:$G))&\" \"&OFFSET(Main!$H$8,,,COUNTA(Main!$H:$H)))","v":""}]
[null,null,null,null,null,null,null,null,null,{"$f":"IF(AND(G158=\"\",H158=\"\"),\"\",OFFSET(Main!$G$8,,,COUNTA(Main!$G:$G))&\" \"&OFFSET(Main!$H$8,,,COUNTA(Main!$H:$H)))","v":""}]
[null,null,null,null,null,null,null,null,null,{"$f":"IF(AND(G159=\"\",H159=\"\"),\"\",OFFSET(Main!$G$8,,,COUNTA(Main!$G:$G))&\" \"&OFFSET(Main!$H$8,,,COUNTA(Main!$H:$H)))","v":""}]
[null,null,null,null,null,null,null,null,null,{"$f":"IF(AND(G160=\"\",H160=\"\"),\"\",OFFSET(Main!$G$8,,,COUNTA(Main!$G:$G))&\" \"&OFFSET(Main!$H$8,,,COUNTA(Main!$H:$H)))","v":""}]
[null,null,null,null,null,null,null,null,null,{"$f":"IF(AND(G161=\"\",H161=\"\"),\"\",OFFSET(Main!$G$8,,,COUNTA(Main!$G:$G))&\" \"&OFFSET(Main!$H$8,,,COUNTA(Main!$H:$H)))","v":""}]
[null,null,null,null,null,null,null,null,null,{"$f":"IF(AND(G162=\"\",H162=\"\"),\"\",OFFSET(Main!$G$8,,,COUNTA(Main!$G:$G))&\" \"&OFFSET(Main!$H$8,,,COUNTA(Main!$H:$H)))","v":""}]
[null,null,null,null,null,null,null,null,null,{"$f":"IF(AND(G163=\"\",H163=\"\"),\"\",OFFSET(Main!$G$8,,,COUNTA(Main!$G:$G))&\" \"&OFFSET(Main!$H$8,,,COUNTA(Main!$H:$H)))","v":""}]
[null,null,null,null,null,null,null,null,null,{"$f":"IF(AND(G164=\"\",H164=\"\"),\"\",OFFSET(Main!$G$8,,,COUNTA(Main!$G:$G))&\" \"&OFFSET(Main!$H$8,,,COUNTA(Main!$H:$H)))","v":""}]
[null,null,null,null,null,null,null,null,null,{"$f":"IF(AND(G165=\"\",H165=\"\"),\"\",OFFSET(Main!$G$8,,,COUNTA(Main!$G:$G))&\" \"&OFFSET(Main!$H$8,,,COUNTA(Main!$H:$H)))","v":""}]
[null,null,null,null,null,null,null,null,null,{"$f":"IF(AND(G166=\"\",H166=\"\"),\"\",OFFSET(Main!$G$8,,,COUNTA(Main!$G:$G))&\" \"&OFFSET(Main!$H$8,,,COUNTA(Main!$H:$H)))","v":""}]
[null,null,null,null,null,null,null,null,null,{"$f":"IF(AND(G167=\"\",H167=\"\"),\"\",OFFSET(Main!$G$8,,,COUNTA(Main!$G:$G))&\" \"&OFFSET(Main!$H$8,,,COUNTA(Main!$H:$H)))","v":""}]
[null,null,null,null,null,null,null,null,null,{"$f":"IF(AND(G168=\"\",H168=\"\"),\"\",OFFSET(Main!$G$8,,,COUNTA(Main!$G:$G))&\" \"&OFFSET(Main!$H$8,,,COUNTA(Main!$H:$H)))","v":""}]
[null,null,null,null,null,null,null,null,null,{"$f":"IF(AND(G169=\"\",H169=\"\"),\"\",OFFSET(Main!$G$8,,,COUNTA(Main!$G:$G))&\" \"&OFFSET(Main!$H$8,,,COUNTA(Main!$H:$H)))","v":""}]
[null,null,null,null,null,null,null,null,null,{"$f":"IF(AND(G170=\"\",H170=\"\"),\"\",OFFSET(Main!$G$8,,,COUNTA(Main!$G:$G))&\" \"&OFFSET(Main!$H$8,,,COUNTA(Main!$H:$H)))","v":""}]
[null,null,null,null,null,null,null,null,null,{"$f":"IF(AND(G171=\"\",H171=\"\"),\"\",OFFSET(Main!$G$8,,,COUNTA(Main!$G:$G))&\" \"&OFFSET(Main!$H$8,,,COUNTA(Main!$H:$H)))","v":""}]
[null,null,null,null,null,null,null,null,null,{"$f":"IF(AND(G172=\"\",H172=\"\"),\"\",OFFSET(Main!$G$8,,,COUNTA(Main!$G:$G))&\" \"&OFFSET(Main!$H$8,,,COUNTA(Main!$H:$H)))","v":""}]
[null,null,null,null,null,null,null,null,null,{"$f":"IF(AND(G173=\"\",H173=\"\"),\"\",OFFSET(Main!$G$8,,,COUNTA(Main!$G:$G))&\" \"&OFFSET(Main!$H$8,,,COUNTA(Main!$H:$H)))","v":""}]
[null,null,null,null,null,null,null,null,null,{"$f":"IF(AND(G174=\"\",H174=\"\"),\"\",OFFSET(Main!$G$8,,,COUNTA(Main!$G:$G))&\" \"&OFFSET(Main!$H$8,,,COUNTA(Main!$H:$H)))","v":""}]
[null,null,null,null,null,null,null,null,null,{"$f":"IF(AND(G175=\"\",H175=\"\"),\"\",OFFSET(Main!$G$8,,,COUNTA(Main!$G:$G))&\" \"&OFFSET(Main!$H$8,,,COUNTA(Main!$H:$H)))","v":""}]
[null,null,null,null,null,null,null,null,null,{"$f":"IF(AND(G176=\"\",H176=\"\"),\"\",OFFSET(Main!$G$8,,,COUNTA(Main!$G:$G))&\" \"&OFFSET(Main!$H$8,,,COUNTA(Main!$H:$H)))","v":""}]
[null,null,null,null,null,null,null,null,null,{"$f":"IF(AND(G177=\"\",H177=\"\"),\"\",OFFSET(Main!$G$8,,,COUNTA(Main!$G:$G))&\" \"&OFFSET(Main!$H$8,,,COUNTA(Main!$H:$H)))","v":""}]
[null,null,null,null,null,null,null,null,null,{"$f":"IF(AND(G178=\"\",H178=\"\"),\"\",OFFSET(Main!$G$8,,,COUNTA(Main!$G:$G))&\" \"&OFFSET(Main!$H$8,,,COUNTA(Main!$H:$H)))","v":""}]
[null,null,null,null,null,null,null,null,null,{"$f":"IF(AND(G179=\"\",H179=\"\"),\"\",OFFSET(Main!$G$8,,,COUNTA(Main!$G:$G))&\" \"&OFFSET(Main!$H$8,,,COUNTA(Main!$H:$H)))","v":""}]
[null,null,null,null,null,null,null,null,null,{"$f":"IF(AND(G180=\"\",H180=\"\"),\"\",OFFSET(Main!$G$8,,,COUNTA(Main!$G:$G))&\" \"&OFFSET(Main!$H$8,,,COUNTA(Main!$H:$H)))","v":""}]
[null,null,null,null,null,null,null,null,null,{"$f":"IF(AND(G181=\"\",H181=\"\"),\"\",OFFSET(Main!$G$8,,,COUNTA(Main!$G:$G))&\" \"&OFFSET(Main!$H$8,,,COUNTA(Main!$H:$H)))","v":""}]
[null,null,null,null,null,null,null,null,null,{"$f":"IF(AND(G182=\"\",H182=\"\"),\"\",OFFSET(Main!$G$8,,,COUNTA(Main!$G:$G))&\" \"&OFFSET(Main!$H$8,,,COUNTA(Main!$H:$H)))","v":""}]
[null,null,null,null,null,null,null,null,null,{"$f":"IF(AND(G183=\"\",H183=\"\"),\"\",OFFSET(Main!$G$8,,,COUNTA(Main!$G:$G))&\" \"&OFFSET(Main!$H$8,,,COUNTA(Main!$H:$H)))","v":""}]
[null,null,null,null,null,null,null,null,null,{"$f":"IF(AND(G184=\"\",H184=\"\"),\"\",OFFSET(Main!$G$8,,,COUNTA(Main!$G:$G))&\" \"&OFFSET(Main!$H$8,,,COUNTA(Main!$H:$H)))","v":""}]
[null,null,null,null,null,null,null,null,null,{"$f":"IF(AND(G185=\"\",H185=\"\"),\"\",OFFSET(Main!$G$8,,,COUNTA(Main!$G:$G))&\" \"&OFFSET(Main!$H$8,,,COUNTA(Main!$H:$H)))","v":""}]
[null,null,null,null,null,null,null,null,null,{"$f":"IF(AND(G186=\"\",H186=\"\"),\"\",OFFSET(Main!$G$8,,,COUNTA(Main!$G:$G))&\" \"&OFFSET(Main!$H$8,,,COUNTA(Main!$H:$H)))","v":""}]
[null,null,null,null,null,null,null,null,null,{"$f":"IF(AND(G187=\"\",H187=\"\"),\"\",OFFSET(Main!$G$8,,,COUNTA(Main!$G:$G))&\" \"&OFFSET(Main!$H$8,,,COUNTA(Main!$H:$H)))","v":""}]
[null,null,null,null,null,null,null,null,null,{"$f":"IF(AND(G188=\"\",H188=\"\"),\"\",OFFSET(Main!$G$8,,,COUNTA(Main!$G:$G))&\" \"&OFFSET(Main!$H$8,,,COUNTA(Main!$H:$H)))","v":""}]
[null,null,null,null,null,null,null,null,null,{"$f":"IF(AND(G189=\"\",H189=\"\"),\"\",OFFSET(Main!$G$8,,,COUNTA(Main!$G:$G))&\" \"&OFFSET(Main!$H$8,,,COUNTA(Main!$H:$H)))","v":""}]
[null,null,null,null,null,null,null,null,null,{"$f":"IF(AND(G190=\"\",H190=\"\"),\"\",OFFSET(Main!$G$8,,,COUNTA(Main!$G:$G))&\" \"&OFFSET(Main!$H$8,,,COUNTA(Main!$H:$H)))","v":""}]
[null,null,null,null,null,null,null,null,null,{"$f":"IF(AND(G191=\"\",H191=\"\"),\"\",OFFSET(Main!$G$8,,,COUNTA(Main!$G:$G))&\" \"&OFFSET(Main!$H$8,,,COUNTA(Main!$H:$H)))","v":""}]
[null,null,null,null,null,null,null,null,null,{"$f":"IF(AND(G192=\"\",H192=\"\"),\"\",OFFSET(Main!$G$8,,,COUNTA(Main!$G:$G))&\" \"&OFFSET(Main!$H$8,,,COUNTA(Main!$H:$H)))","v":""}]
[null,null,null,null,null,null,null,null,null,{"$f":"IF(AND(G193=\"\",H193=\"\"),\"\",OFFSET(Main!$G$8,,,COUNTA(Main!$G:$G))&\" \"&OFFSET(Main!$H$8,,,COUNTA(Main!$H:$H)))","v":""}]
[null,null,null,null,null,null,null,null,null,{"$f":"IF(AND(G194=\"\",H194=\"\"),\"\",OFFSET(Main!$G$8,,,COUNTA(Main!$G:$G))&\" \"&OFFSET(Main!$H$8,,,COUNTA(Main!$H:$H)))","v":""}]
[null,null,null,null,null,null,null,null,null,{"$f":"IF(AND(G195=\"\",H195=\"\"),\"\",OFFSET(Main!$G$8,,,COUNTA(Main!$G:$G))&\" \"&OFFSET(Main!$H$8,,,COUNTA(Main!$H:$H)))","v":""}]
[null,null,null,null,null,null,null,null,null,{"$f":"IF(AND(G196=\"\",H196=\"\"),\"\",OFFSET(Main!$G$8,,,COUNTA(Main!$G:$G))&\" \"&OFFSET(Main!$H$8,,,COUNTA(Main!$H:$H)))","v":""}]

{"sheet":"Sheet1","index":1,"n_rows":2,"n_cols":3,"rows_kept":2,"cut":false,"hidden":false,"merged":[]}
[null,"Client","Number"]
[null,"Nono",456]

{"sheet":"Sheet2","index":2,"n_rows":2,"n_cols":3,"rows_kept":2,"cut":false,"hidden":false,"merged":[]}
[null,"Client","Number"]
[null,"Momo",123]

{"sheet":"Sheet4","index":3,"n_rows":2,"n_cols":3,"rows_kept":2,"cut":false,"hidden":false,"merged":[]}
[null,"Client","Number"]
[null,"OMAR","15HK"]

{"sheet":"Sheet3","index":4,"n_rows":2,"n_cols":3,"rows_kept":2,"cut":false,"hidden":false,"merged":[]}
[null,"Client","Number"]
[null,"AHMED",52650]

{"sheet":"Sheet5","index":5,"n_rows":2,"n_cols":3,"rows_kept":2,"cut":false,"hidden":false,"merged":[]}
[null,"Client","Number"]
[null,"Said","598lk1"]

{"sheet":"Sheet6","index":6,"n_rows":2,"n_cols":3,"rows_kept":2,"cut":false,"hidden":false,"merged":[]}
[null,"Client","Number"]
[null,"Murad",152630]

{"sheet":"Sheet7","index":7,"n_rows":2,"n_cols":3,"rows_kept":2,"cut":false,"hidden":false,"merged":[]}
[null,"Client","Number"]
[null,"Farouk",850]

{"sheet":"Sheet8","index":8,"n_rows":2,"n_cols":3,"rows_kept":2,"cut":false,"hidden":false,"merged":[]}
[null,"Client","Number"]
[null,"Mohamed Ali",52689]